fUST/lending_fUST_20241107
["ID","MTS","AMOUNT","RATE_DAILY","PERIOD"]
[341518290,1730947849154,-177.43824902,0.00023013,2]
[341518291,1730947849162,-500.0,0.00023013,2]
[341518292,1730947849171,-500.0,0.00023013,2]
[341518293,1730947849180,-818.05,0.00023013,2]
[341518294,1730947849189,-955.66,0.00023013,2]
[341518295,1730947849199,-3124.97,0.00023013,2]
[341518296,1730947849208,-500.0,0.00023013,2]
[341518297,1730947849218,-500.0,0.00023013,2]
[341518298,1730947849228,-500.0,0.00023013,2]
[341518299,1730947849237,-500.0,0.00023013,2]
[341518300,1730947849247,-500.0,0.00023287,2]
[341518301,1730947849256,-524.46547161,0.00023287,2]
[341518302,1730947849266,-818.05,0.00023287,2]
[341518303,1730947849275,-955.66,0.00023287,2]
[341518304,1730947849285,-3124.97,0.00023287,2]
[341518305,1730947849295,-500.0,0.00023287,2]
[341518306,1730947849305,-500.0,0.00023287,2]
[341518307,1730947849315,-500.0,0.00023287,2]
[341518308,1730947849327,-500.0,0.00023287,2]
[341518309,1730947849337,-500.0,0.000235,2]
[341518310,1730947849346,-500.0,0.000235,2]
[341518311,1730947849358,-500.0,0.00023561,2]
[341518312,1730947849367,-818.05,0.00023561,2]
[341518313,1730947849376,-955.66,0.00023561,2]
[341518314,1730947849386,-3124.97,0.00023561,2]
[341518315,1730947849396,-500.0,0.00023561,2]
[341518316,1730947849406,-500.0,0.00023561,2]
[341518317,1730947849415,-500.0,0.00023561,2]
[341518318,1730947849425,-419.72014721,0.00023561,2]
[341518319,1730947849435,-420.0,0.00023817,2]
[341518320,1730947849445,-500.0,0.00023835,2]
[341518321,1730947849454,-818.05,0.00023835,2]
[341518322,1730947849463,-955.66,0.00023835,2]
[341518323,1730947849472,-3124.97,0.00023835,2]
[341518324,1730947849482,-500.0,0.00023835,2]
[341518325,1730947849492,-500.0,0.00023835,2]
[341518326,1730947849502,-500.0,0.00023835,2]
[341518327,1730947849511,-10000.0,0.00024,30]
[341518328,1730947849520,-7000.0,0.00024,7]
[341518329,1730947849530,-420.0,0.00024108,2]
[341518330,1730947849539,-500.0,0.00024109,2]
[341518331,1730947849549,-818.05,0.00024109,2]
[341518332,1730947849558,-955.66,0.00024109,2]
[341518333,1730947849568,-3124.97,0.00024109,2]
[341518334,1730947849577,-500.0,0.00024109,2]
[341518335,1730947849586,-500.0,0.00024109,2]
[341518336,1730947849596,-340.60485429,0.00024109,2]
[341518337,1730947849606,-153.0,0.00024166,2]
[341518338,1730947849616,-500.0,0.00024383,2]
[341518339,1730947849625,-818.05,0.00024383,2]
[341518340,1730947849634,-955.66,0.00024383,2]
[341518341,1730947849644,-3124.97,0.00024383,2]
[341518342,1730947849653,-500.0,0.00024383,2]
[341518343,1730947849662,-500.0,0.00024383,2]
[341518344,1730947849672,-168.405798,0.00024482,2]
[341518345,1730947849681,-500.0,0.00024657,2]
[341518346,1730947849691,-818.05,0.00024657,2]
[341518347,1730947849700,-955.66,0.00024657,2]
[341518348,1730947849709,-3124.97,0.00024657,2]
[341518349,1730947849719,-500.0,0.00024657,2]
[341518350,1730947849728,-500.0,0.00024657,2]
[341518351,1730947849737,-364.35889549,0.00024658,2]
[341518352,1730947849746,-3191.11931277,0.00024713,2]
[341518353,1730947849755,-567.65867924,0.0002487,2]
[341518354,1730947849860,-1000.0,0.0002487,2]
[341518355,1730947849870,-166.82368273,0.0002493,2]
[341518356,1730947849880,-500.0,0.00024931,2]
[341518357,1730947849890,-818.05,0.00024931,2]
[341518358,1730947849900,-955.66,0.00024931,2]
[341518359,1730947849909,-3124.97,0.00024931,2]
[341518360,1730947849920,-500.0,0.00024931,2]
[341518361,1730947849930,-500.0,0.00024931,2]
[341518362,1730947849940,-160.219,0.000251,4]
[341518363,1730947849950,-500.0,0.00025205,2]
[341518364,1730947849959,-818.05,0.00025205,2]
[341518365,1730947849969,-955.66,0.00025205,2]
[341518366,1730947849978,-3124.97,0.00025205,2]
[341518367,1730947849988,-500.0,0.00025205,2]
[341518368,1730947849997,-500.0,0.00025205,2]
[341518369,1730947850007,-500.0,0.00025479,2]
[341518370,1730947850016,-818.05,0.00025479,2]
[341518371,1730947850026,-955.66,0.00025479,2]
[341518372,1730947850035,-3124.97,0.00025479,2]
[341518373,1730947850044,-500.0,0.00025479,2]
[341518374,1730947850053,-500.0,0.00025479,2]
[341518375,1730947850062,-500.0,0.00025753,2]
[341518376,1730947850071,-818.05,0.00025753,2]
[341518377,1730947850082,-955.66,0.00025753,2]
[341518378,1730947850091,-3124.97,0.00025753,2]
[341518379,1730947850100,-500.0,0.00025753,2]
[341518380,1730947850111,-500.0,0.00025753,2]
[341518381,1730947850125,-1500.0,0.00025847,2]
[341518382,1730947850134,-587.0,0.00025884,2]
[341518383,1730947850143,-150.01,0.00026026,2]
[341518384,1730947850153,-3002.69530498,0.00026026,2]
[341518385,1730947850162,-500.0,0.00026027,2]
[341518386,1730947850171,-818.05,0.00026027,2]
[341518387,1730947850180,-955.66,0.00026027,2]
[341518388,1730947850189,-3124.97,0.00026027,2]
[341518389,1730947850199,-500.0,0.00026027,2]
[341518390,1730947850207,-500.0,0.00026027,2]
[341518391,1730947850217,-153.0,0.0002614,2]
[341518392,1730947850226,-153.0,0.0002614,2]
[341518393,1730947850235,-153.0,0.0002614,2]
[341518394,1730947850244,-153.0,0.0002614,2]
[341518395,1730947850253,-153.0,0.0002614,2]
[341518396,1730947850263,-306.0,0.0002614,2]
[341518397,1730947850272,-153.0,0.0002614,2]
[341518398,1730947850281,-153.0,0.0002614,2]
[341518399,1730947850290,-153.0,0.0002614,2]
[341518400,1730947850299,-153.0,0.0002614,2]
[341518401,1730947850308,-153.0,0.0002614,2]
[341518402,1730947850321,-472.58429381,0.00026288,2]
[341518403,1730947850331,-500.0,0.00026301,2]
[341518404,1730947850340,-818.05,0.00026301,2]
[341518405,1730947850351,-955.66,0.00026301,2]
[341518406,1730947850362,-3124.97,0.00026301,2]
[341518407,1730947850372,-500.0,0.00026301,2]
[341518408,1730947850381,-500.0,0.00026301,2]
[341518409,1730947850392,-500.0,0.00026575,2]
[341518410,1730947850400,-818.05,0.00026575,2]
[341518411,1730947850409,-955.66,0.00026575,2]
[341518412,1730947850419,-3124.97,0.00026575,2]
[341518413,1730947850428,-500.0,0.00026575,2]
[341518414,1730947850437,-500.0,0.00026575,2]
[341518415,1730947850447,-153.0,0.00026712,2]
[341518416,1730947850456,-153.0,0.00026712,2]
[341518417,1730947850465,-159.832,0.0002676,2]
[341518418,1730947850474,-500.0,0.00026849,2]
[341518419,1730947850484,-818.05,0.00026849,2]
[341518420,1730947850494,-955.66,0.00026849,2]
[341518421,1730947850503,-3124.97,0.00026849,2]
[341518422,1730947850512,-627.61564745,0.00026849,2]
[341518423,1730947850521,-600.0,0.00026849,2]
[341518424,1730947850531,-500.0,0.00026849,2]
[341518425,1730947850539,-201.437,0.00026928,2]
[341518426,1730947850549,-1136.0,0.00026928,2]
[341518427,1730947850558,-529.0,0.00026928,2]
[341518428,1730947850568,-2392.0,0.00026928,2]
[341518429,1730947850577,-184.252,0.00026928,2]
[341518430,1730947850586,-153.0,0.00026962,2]
[341518431,1730947850595,-153.0,0.00026962,2]
[341518432,1730947850607,-153.0,0.00026962,2]
[341518433,1730947850617,-306.0,0.00026962,2]
[341518434,1730947850626,-153.0,0.00026962,2]
[341518435,1730947850635,-153.0,0.00026962,2]
[341518436,1730947850645,-155.0428142,0.00026962,2]
[341518437,1730947850654,-153.0,0.00026962,2]
[341518438,1730947850663,-280.3905036,0.00026962,2]
[341518439,1730947850672,-150.0,0.00027,2]
[341518440,1730947850682,-925.5327179,0.0002703,2]
[341518441,1730947850691,-3191.11931277,0.00027062,2]
[341518442,1730947850701,-153.0,0.00027096,2]
[341518443,1730947850710,-153.0,0.00027096,2]
[341518444,1730947850720,-153.0,0.00027096,2]
[341518445,1730947850729,-153.0,0.00027096,2]
[341518446,1730947850739,-153.0,0.00027096,2]
[341518447,1730947850750,-153.0,0.00027096,2]
[341518448,1730947850760,-153.0,0.00027096,2]
[341518449,1730947850768,-153.0,0.00027096,2]
[341518450,1730947850778,-153.0,0.00027096,2]
[341518451,1730947850787,-511.15358603,0.00027123,2]
[341518452,1730947850796,-818.05,0.00027123,2]
[341518453,1730947850806,-955.66,0.00027123,2]
[341518454,1730947850815,-3124.97,0.00027123,2]
[341518455,1730947850824,-500.0,0.00027123,2]
[341518456,1730947850833,-153.0,0.00027123,2]
[341518457,1730947850842,-319.6138097,0.00027123,2]
[341518458,1730947850851,-160.0,0.00027233,3]
[341518459,1730947850863,-510.23003145,0.00027373,2]
[341518460,1730947850873,-500.0,0.00027373,2]
[341518461,1730947850882,-214.42382453,0.00027373,2]
[341518462,1730947850892,-1500.0,0.00027375,2]
[341518463,1730947850901,-1002.18954692,0.00027397,2]
[341518464,1730947850910,-500.0,0.00027397,7]
[341518465,1730947850919,-818.05,0.00027397,2]
[341518466,1730947850928,-955.66,0.00027397,2]
[341518467,1730947850937,-3124.97,0.00027397,2]
[341518468,1730947850946,-500.0,0.00027397,2]
[341518469,1730947850956,-165.6643437,0.00027397,2]
[341518470,1730947850965,-500.0,0.00027397,2]
[341518471,1730947850974,-500.0,0.00027397,2]
[341518472,1730947850983,-500.0,0.00027397,2]
[341518473,1730947850993,-500.0,0.00027397,2]
[341518474,1730947851002,-500.0,0.00027397,2]
[341518475,1730947851011,-500.0,0.00027397,2]
[341518476,1730947851020,-500.0,0.00027397,2]
[341518477,1730947851029,-500.0,0.00027397,2]
[341518478,1730947851038,-500.0,0.00027397,2]
[341518479,1730947851047,-500.0,0.00027397,2]
[341518480,1730947851056,-500.0,0.00027397,2]
[341518481,1730947851064,-500.0,0.00027397,2]
[341518482,1730947851074,-500.0,0.00027397,2]
[341518483,1730947851083,-500.0,0.00027397,2]
[341518484,1730947851092,-500.0,0.00027397,2]
[341518485,1730947851101,-500.0,0.00027397,2]
[341518486,1730947851112,-500.0,0.00027397,2]
[341518487,1730947851121,-500.0,0.00027397,2]
[341518488,1730947851130,-500.0,0.00027397,2]
[341518489,1730947851139,-500.0,0.00027397,2]
[341518490,1730947851151,-500.0,0.00027397,2]
[341518491,1730947851160,-500.0,0.00027397,2]
[341518492,1730947851169,-500.0,0.00027397,2]
[341518493,1730947851178,-500.0,0.00027397,2]
[341518494,1730947851187,-500.0,0.00027397,2]
[341518495,1730947851196,-500.0,0.00027397,2]
[341518496,1730947851204,-500.0,0.00027397,2]
[341518497,1730947851213,-500.0,0.00027397,2]
[341518498,1730947851224,-500.0,0.00027397,2]
[341518499,1730947851234,-500.0,0.00027397,2]
[341518500,1730947851244,-500.0,0.00027397,2]
[341518501,1730947851254,-500.0,0.00027397,2]
[341518502,1730947851264,-500.0,0.00027397,2]
[341518503,1730947851273,-577.17531897,0.00027397,2]
[341518504,1730947851282,-577.17531897,0.00027397,2]
[341518505,1730947851291,-577.17531897,0.00027397,2]
[341518506,1730947851301,-577.17531897,0.00027397,2]
[341518507,1730947851311,-577.17531897,0.00027397,2]
[341518508,1730947851322,-577.17531897,0.00027397,2]
[341518509,1730947851333,-577.17531897,0.00027397,2]
[341518510,1730947851343,-577.17531897,0.00027397,2]
[341518511,1730947851351,-577.17531897,0.00027397,2]
[341518512,1730947851365,-577.17531897,0.00027397,2]
[341518513,1730947851373,-577.17531897,0.00027397,2]
[341518514,1730947851382,-577.17531897,0.00027397,2]
[341518515,1730947851391,-577.17531897,0.00027397,2]
[341518516,1730947851401,-577.17531897,0.00027397,2]
[341518517,1730947851410,-577.17531897,0.00027397,2]
[341518518,1730947851419,-577.17531897,0.00027397,2]
[341518519,1730947851428,-577.17531897,0.00027397,2]
[341518520,1730947851438,-577.17531897,0.00027397,2]
[341518521,1730947851447,-577.17531897,0.00027397,2]
[341518522,1730947851456,-577.17531897,0.00027397,2]
[341518523,1730947851466,-577.17531897,0.00027397,2]
[341518524,1730947851474,-577.17531897,0.00027397,2]
[341518525,1730947851483,-577.17531897,0.00027397,2]
[341518526,1730947851492,-577.17531897,0.00027397,2]
[341518527,1730947851502,-577.17531897,0.00027397,2]
[341518528,1730947851512,-577.17531897,0.00027397,2]
[341518529,1730947851521,-577.17531897,0.00027397,2]
[341518530,1730947851530,-577.17531897,0.00027397,2]
[341518531,1730947851538,-577.17531897,0.00027397,2]
[341518532,1730947851547,-577.17531897,0.00027397,2]
[341518533,1730947851556,-577.17531897,0.00027397,2]
[341518534,1730947851566,-577.17531897,0.00027397,2]
[341518535,1730947851575,-577.17531897,0.00027397,2]
[341518536,1730947851584,-577.17531897,0.00027397,2]
[341518537,1730947851593,-577.17531897,0.00027397,2]
[341518538,1730947851602,-577.17531897,0.00027397,2]
[341518539,1730947851613,-577.17531897,0.00027397,2]
[341518540,1730947851623,-577.17531897,0.00027397,2]
[341518541,1730947851632,-577.17531897,0.00027397,2]
[341518542,1730947851641,-577.17531897,0.00027397,2]
[341518543,1730947851650,-577.17531897,0.00027397,2]
[341518544,1730947851659,-577.17531897,0.00027397,2]
[341518545,1730947851668,-585.19164284,0.00027397,2]
[341518546,1730947851677,-585.19164284,0.00027397,2]
[341518547,1730947851686,-557.65321259,0.00027397,2]
[341518548,1730947851695,-557.65321259,0.00027397,2]
[341518549,1730947851704,-557.65321259,0.00027397,2]
[341518550,1730947851713,-557.65321259,0.00027397,2]
[341518551,1730947851723,-557.65321259,0.00027397,2]
[341518552,1730947851732,-557.65321259,0.00027397,2]
[341518553,1730947851741,-557.65321259,0.00027397,2]
[341518554,1730947851750,-557.65321259,0.00027397,2]
[341518555,1730947851759,-557.65321259,0.00027397,2]
[341518556,1730947851768,-557.65321259,0.00027397,2]
[341518557,1730947851777,-557.65321259,0.00027397,2]
[341518558,1730947851787,-557.65321259,0.00027397,2]
[341518559,1730947851795,-557.65321259,0.00027397,2]
[341518560,1730947851804,-557.65321259,0.00027397,2]
[341518561,1730947851814,-557.65321259,0.00027397,2]
[341518562,1730947851823,-557.65321259,0.00027397,2]
[341518563,1730947851832,-557.65321259,0.00027397,2]
[341518564,1730947851841,-853.11567193,0.00027397,2]
[341518565,1730947851850,-211.2956293,0.00027455,30]
[341518566,1730947851860,-211.2956293,0.00027455,30]
[341518567,1730947851870,-211.2956293,0.00027455,30]
[341518568,1730947851951,-211.2956293,0.00027455,30]
[341518569,1730947851962,-211.2956293,0.00027455,30]
[341518570,1730947851971,-211.2956293,0.00027455,30]
[341518571,1730947851980,-211.2956293,0.00027455,30]
[341518572,1730947851990,-211.2956293,0.00027455,30]
[341518573,1730947851999,-211.2956293,0.00027455,30]
[341518574,1730947852008,-211.2956293,0.00027455,30]
[341518575,1730947852017,-211.2956293,0.00027455,30]
[341518576,1730947852026,-211.2956293,0.00027455,30]
[341518577,1730947852035,-211.2956293,0.00027455,30]
[341518578,1730947852045,-211.2956293,0.00027455,30]
[341518579,1730947852055,-211.2956293,0.00027455,30]
[341518580,1730947852065,-211.2956293,0.00027455,30]
[341518581,1730947852075,-211.2956293,0.00027455,30]
[341518582,1730947852084,-211.2956293,0.00027455,30]
[341518583,1730947852093,-211.2956293,0.00027455,30]
[341518584,1730947852103,-10187.20941537,0.000275,2]
[341518585,1730947852114,-818.05,0.00027671,2]
[341518586,1730947852124,-955.66,0.00027671,2]
[341518587,1730947852133,-3124.97,0.00027671,2]
[341518588,1730947852142,-500.0,0.00027671,2]
[341518589,1730947852151,-199.4215234,0.00027784,30]
[341518590,1730947852160,-211.2956293,0.00027784,30]
[341518591,1730947852169,-211.2956293,0.00027784,30]
[341518592,1730947852178,-211.2956293,0.00027784,30]
[341518593,1730947852187,-211.2956293,0.00027784,30]
[341518594,1730947852195,-1000.0,0.000278,4]
[341518595,1730947852205,-1000.0,0.000278,5]
[341518596,1730947852214,-1000.0,0.000278,6]
[341518597,1730947852223,-160.0,0.00027881,4]
[341518598,1730947852232,-818.05,0.00027945,2]
[341518599,1730947852241,-955.66,0.00027945,2]
[341518600,1730947852250,-3124.97,0.00027945,2]
[341518601,1730947852259,-491.93130527,0.00027945,2]
[341518602,1730947852269,-306.0,0.0002796,30]
[341518603,1730947852278,-500.0,0.00028,30]
[341518604,1730947852287,-823.0,0.0002813,2]
[341518605,1730947852297,-206.491,0.00028187,19]
[341518606,1730947852306,-151.0,0.000282,7]
[341518607,1730947852321,-151.0,0.000282,7]
[341518608,1730947852330,-216.77187294,0.00028219,7]
[341518609,1730947852341,-150.05,0.00028219,2]
[341518610,1730947852351,-818.17396094,0.00028219,2]
[341518611,1730947852363,-955.797,0.00028219,2]
[341518612,1730947852372,-3125.07404313,0.00028219,2]
[341518613,1730947852382,-153.49731073,0.00028219,2]
[341518614,1730947852391,-500.0,0.00028219,2]
[341518615,1730947852400,-150.05,0.00028219,2]
[341518616,1730947852409,-150.05,0.00028219,2]
[341518617,1730947852419,-501.36640383,0.00028224,10]
[341518618,1730947852428,-174.30785049,0.00028493,2]
[341518619,1730947852437,-500.0,0.00028493,2]
[341518620,1730947852446,-208.70610064,0.00028493,2]
[341518621,1730947852456,-150.292547,0.000285,2]
[341518622,1730947852466,-160.0,0.00028529,5]
[341518623,1730947852475,-500.0,0.00028549,10]
[341518624,1730947852485,-448.482625,0.00028606,7]
[341518625,1730947852494,-448.482625,0.00028606,7]
[341518626,1730947852503,-211.2956293,0.00028606,30]
[341518627,1730947852513,-211.2956293,0.00028606,30]
[341518628,1730947852523,-211.2956293,0.00028606,30]
[341518629,1730947852532,-211.2956293,0.00028606,30]
[341518630,1730947852543,-211.2956293,0.00028606,30]
[341518631,1730947852553,-211.2956293,0.00028606,30]
[341518632,1730947852563,-211.2956293,0.00028606,30]
[341518633,1730947852573,-211.2956293,0.00028606,30]
[341518634,1730947852582,-211.2956293,0.00028606,30]
[341518635,1730947852591,-215.775359,0.00028606,30]
[341518636,1730947852600,-211.2956293,0.00028606,30]
[341518637,1730947852613,-211.2956293,0.00028606,30]
[341518638,1730947852623,-211.2956293,0.00028606,30]
[341518639,1730947852633,-211.2956293,0.00028606,30]
[341518640,1730947852642,-211.2956293,0.00028606,30]
[341518641,1730947852652,-211.2956293,0.00028606,30]
[341518642,1730947852661,-211.2956293,0.00028606,30]
[341518643,1730947852671,-213.9680593,0.00028606,30]
[341518644,1730947852681,-1000.0,0.00028742,5]
[341518645,1730947852691,-500.0,0.00028767,2]
[341518646,1730947852700,-151.0,0.00028767,2]
[341518647,1730947852709,-20000.0,0.0002889,15]
[341518648,1730947852718,-200.0,0.0002889,21]
[341518649,1730947852727,-156.519092,0.0002889,7]
[341518650,1730947852736,-767.71,0.00029,2]
[341518651,1730947852745,-500.0,0.00029041,2]
[341518652,1730947852755,-2000.0,0.00029091,5]
[341518653,1730947852764,-160.0,0.00029177,6]
[341518654,1730947852773,-3282.82,0.000293,30]
[341518655,1730947852782,-12465.32,0.000293,30]
[341518656,1730947852792,-500.0,0.00029315,2]
[341518657,1730947852801,-211.2956293,0.00029428,30]
[341518658,1730947852811,-211.2956293,0.00029428,30]
[341518659,1730947852820,-211.2956293,0.00029428,30]
[341518660,1730947852829,-211.2956293,0.00029428,30]
[341518661,1730947852838,-422.4392084,0.00029428,30]
[341518662,1730947852848,-211.2956293,0.00029428,30]
[341518663,1730947852858,-211.2956293,0.00029428,30]
[341518664,1730947852868,-422.5912586,0.00029428,30]
[341518665,1730947852877,-153.0,0.00029445,30]
[341518666,1730947852887,-150.0,0.000295,2]
[341518667,1730947852896,-15000.0,0.0002958,15]
[341518668,1730947852906,-770.90421717,0.00029589,2]
[341518669,1730947852915,-600.0,0.00029589,4]
[341518670,1730947852924,-160.0,0.00029825,7]
[341518671,1730947852934,-150.0,0.00029928,2]
[341518672,1730947852944,-1136.0,0.00029928,2]
[341518673,1730947852954,-529.0,0.00029928,2]
[341518674,1730947852963,-2392.0,0.00029928,2]
[341518675,1730947852973,-151.0,0.0003,120]
[341518676,1730947852982,-781.2,0.0003,120]
[341518677,1730947852991,-151.0,0.0003,120]
[341518678,1730947853001,-400.0,0.0003,30]
[341518679,1730947853011,-200.0,0.0003,15]
[341518680,1730947853020,-206.58825,0.0003,2]
[341518681,1730947853030,-426.0,0.0003,2]
[341518682,1730947853039,-273.92801794,0.0003,2]
[341518683,1730947853048,-500.0,0.00030137,2]
[341518684,1730947853058,-217.28192221,0.00030137,2]
[341518685,1730947853067,-500.0,0.00030137,2]
[341518686,1730947853077,-211.2956293,0.0003025,30]
[341518687,1730947853086,-211.2956293,0.0003025,30]
[341518688,1730947853095,-211.2956293,0.0003025,30]
[341518689,1730947853105,-211.2956293,0.0003025,30]
[341518690,1730947853116,-420.9084409,0.0003025,30]
[341518691,1730947853125,-211.2956293,0.0003025,30]
[341518692,1730947853134,-211.2956293,0.0003025,30]
[341518693,1730947853143,-3282.82,0.000304,30]
[341518694,1730947853153,-12465.32,0.000304,30]
[341518695,1730947853162,-417.26,0.000304,14]
[341518696,1730947853171,-151.842247,0.000304,7]
[341518697,1730947853181,-151.0,0.000304,7]
[341518698,1730947853190,-151.0,0.000304,7]
[341518699,1730947853199,-160.0,0.00030473,8]
[341518700,1730947853208,-426.0,0.0003057,2]
[341518701,1730947853218,-2000.0,0.00030618,5]
[341518702,1730947853227,-5930.644,0.00030782,2]
[341518703,1730947853236,-200.0,0.0003088,25]
[341518704,1730947853245,-645.232786,0.0003097,2]
[341518705,1730947853254,-20000.0,0.0003098,15]
[341518706,1730947853263,-448.482625,0.0003098,7]
[341518707,1730947853272,-448.482625,0.0003098,7]
[341518708,1730947853282,-280.45781,0.00031,120]
[341518709,1730947853291,-476.66,0.000311,14]
[341518710,1730947853300,-13305.39,0.000311,14]
[341518711,1730947853310,-160.0,0.00031122,9]
[341518712,1730947853319,-161.70495821,0.00031122,5]
[341518713,1730947853332,-2126.4005056,0.00031221,3]
[341518714,1730947853342,-303.4793862,0.00031233,30]
[341518715,1730947853352,-1500.0,0.00031247,5]
[341518716,1730947853363,-500.0,0.00031278,3]
[341518717,1730947853372,-417.26,0.000313,14]
[341518718,1730947853381,-500.0,0.00031373,7]
[341518719,1730947853390,-3282.82,0.000314,30]
[341518720,1730947853400,-12465.32,0.000314,30]
[341518721,1730947853408,-803.29135637,0.000314,2]
[341518722,1730947853417,-206.58825,0.00031407,2]
[341518723,1730947853426,-2440.95207908,0.00031451,2]
[341518724,1730947853435,-645.232786,0.0003147,2]
[341518725,1730947853444,-173.75239579,0.00031499,10]
[341518726,1730947853453,-160.77831808,0.00031499,10]
[341518727,1730947853462,-100089.24998691,0.000315,30]
[341518728,1730947853545,-21097.07935836,0.000315,30]
[341518729,1730947853633,-3191.11931277,0.0002941,2]
[341518730,1730947853644,-17410.96176647,0.000315,30]
[341518731,1730948113666,499.999999,0.0003249,120]
[341518732,1730948148172,500.0,0.0003249,120]
[341518733,1730948175603,500.0,0.0003249,120]
[341518734,1730948195246,500.0,0.0003249,120]
[341518735,1730948221948,500.0,0.0003249,120]
[341518736,1730948240347,500.0,0.0003249,120]
[341518737,1730948257545,500.0,0.0003249,120]
[341518738,1730948273882,500.0,0.0003249,120]
[341518739,1730948289960,1169.27083333,0.0002084,2]
[341518740,1730948291661,500.0,0.0003249,120]
[341518741,1730948330231,500.0,0.0003249,120]
[341518742,1730948369588,500.0,0.0003249,120]
[341518744,1730948386762,500.0,0.00032429,120]
[341518745,1730948404625,500.0,0.00032429,120]
[341518746,1730948440047,500.0,0.00032429,120]
[341518747,1730948475693,500.0,0.00032429,120]
[341518748,1730948511779,500.0,0.00032429,120]
[341518749,1730948554574,500.0,0.00032429,120]
[341518750,1730948590957,500.0,0.00032429,120]
[341518751,1730948607386,500.0,0.00032429,120]
[341518752,1730948623166,500.0,0.00032429,120]
[341518754,1730948652943,500.0,0.00032429,120]
[341518755,1730948683548,500.0,0.00032429,120]
[341518756,1730948721344,500.0,0.00032431,120]
[341518757,1730948738173,500.0,0.00032431,120]
[341518758,1730948754990,500.0,0.00032431,120]
[341518759,1730948772715,500.0,0.00032431,120]
[341518760,1730948790448,500.0,0.00032431,120]
[341518761,1730948815354,500.0,0.00032431,120]
[341518764,1730948837281,500.0,0.00032431,120]
[341518766,1730948856682,500.0,0.00032431,120]
[341518767,1730948874851,500.0,0.00032431,120]
[341518768,1730948896335,500.0,0.00032431,120]
[341518769,1730948901894,1169.27083333,0.0002084,2]
[341518773,1730948915130,500.0,0.00032431,120]
[341518774,1730948930231,500.0,0.00032431,120]
[341518789,1730948947277,500.0,0.00032431,120]
[341518815,1730948965235,500.0,0.00032431,120]
[341518830,1730948984269,500.0,0.00032431,120]
[341518831,1730948993735,1000.0,0.00032431,30]
[341518832,1730949001311,500.0,0.00032431,120]
[341518833,1730949016946,500.0,0.00032431,120]
[341518834,1730949017633,593.08,0.00032431,30]
[341518835,1730949026089,1000.0,0.00032431,30]
[341518842,1730949032057,500.0,0.00032431,120]
[341518843,1730949032179,-300.0,0.00020916,2]
[341518844,1730949032190,-202.0,0.00020916,2]
[341518845,1730949032200,-17.15321759,0.00020917,2]
[341518846,1730949032213,-146.06580641,0.00020917,2]
[341518847,1730949032223,-964.8785612,0.00020917,2]
[341518848,1730949032232,-11096.05552242,0.00020917,2]
[341518902,1730949038431,-501.60871891,0.00020917,2]
[341518955,1730949043259,-13302.33575867,0.00020917,2]
[341518956,1730949043268,-1595.55965642,0.00021817,2]
[341518957,1730949043277,-177.43824902,0.00021917,2]
[341518958,1730949043289,-229.07378136,0.00021917,2]
[341518959,1730949043300,-509.03769194,0.00021917,2]
[341518960,1730949043309,-500.0,0.00021917,2]
[341518961,1730949043318,-500.0,0.00021917,2]